[Event "US College Final 4-ch"]
[Site "New York"]
[Date "2015.03.28"]
[Round "1"]
[White "Margvelashvili, George"]
[Black "Zherebukh, Yaroslav"]
[Result "1/2-1/2"]
[ECO "E92"]
[WhiteElo "2618"]
[BlackElo "2640"]
[Annotator "Robot 1"]
[PlyCount "80"]
[EventDate "2015.??.??"]
[EventCountry "USA"]
[WhiteTeam "UT Dallas"]
[BlackTeam "Texas Tech University"]
[TimeControl "5400+30"]

1. Nf3 {[%emt 0:00:00]} Nf6 {[%emt 0:00:00]} 2. c4 {[%emt 0:00:00]} g6 {[%emt
0:04:46]} 3. Nc3 {[%emt 0:00:00]} Bg7 {[%emt 0:00:20]} 4. e4 {[%emt 0:00:25]}
d6 {[%emt 0:00:06]} 5. d4 {[%emt 0:00:06]} O-O {[%emt 0:00:06]} 6. h3 {[%emt 0:
00:04]} e5 {[%emt 0:07:11]} 7. d5 {[%emt 0:00:13]} a5 {[%emt 0:01:59]} 8. Bg5 {
[%emt 0:00:25]} Na6 {[%emt 0:00:38]} 9. Nd2 {[%emt 0:02:33]} Qe8 {[%emt 0:01:
32]} 10. Be2 {[%emt 0:01:03]} Nd7 {[%emt 0:00:59]} 11. Nb3 {[%emt 0:10:13]} f6
{[%emt 0:08:22]} 12. Be3 {[%emt 0:01:56]} Nac5 {[%emt 0:02:16]} 13. g4 {[%emt
0:05:57]} a4 {[%emt 0:01:22]} 14. Nxc5 {[%emt 0:00:38]} Nxc5 {[%emt 0:00:06]}
15. h4 {[%emt 0:21:31]} f5 {[%emt 0:04:46]} 16. Bxc5 {[%emt 0:00:59]} dxc5 {
[%emt 0:00:09]} 17. g5 {[%emt 0:00:14]} a3 {[%emt 0:06:04]} 18. b3 {[%emt 0:01:
41]} Qf7 {[%emt 0:11:39]} 19. Qd3 {[%emt 0:09:15]} fxe4 {[%emt 0:10:55]} 20.
Nxe4 {[%emt 0:00:09]} Qf4 {[%emt 0:00:05]} 21. Qe3 {[%emt 0:02:41]} Bf5 {[%emt
0:00:11]} 22. Bd3 {[%emt 0:00:17]} Rf7 {[%emt 0:10:47]} 23. Rd1 {[%emt 0:06:59]
} Raf8 {[%emt 0:03:36]} 24. Rd2 {[%emt 0:01:04]} b6 {[%emt 0:03:43]} 25. Qxf4 {
[%emt 0:05:54]} exf4 {[%emt 0:00:07]} 26. Nf6+ {[%emt 0:00:11]} Bxf6 {[%emt 0:
01:13]} 27. Bxf5 {[%emt 0:00:11]} gxf5 {[%emt 0:01:32]} 28. gxf6 {[%emt 0:00:
03]} Rxf6 {[%emt 0:00:13]} 29. Ke2 {[%emt 0:00:39]} Re8+ {[%emt 0:02:20]} 30.
Kf3 {[%emt 0:00:11]} Re4 {[%emt 0:00:21]} 31. Re2 {[%emt 0:01:54]} Rxe2 {[%emt
0:00:36]} 32. Kxe2 {[%emt 0:00:02]} Rg6 {[%emt 0:12:33]} 33. Kf3 {[%emt 0:00:
52]} Kf7 {[%emt 0:01:48]} 34. Re1 {[%emt 0:07:16]} Rh6 {[%emt 0:00:56]} 35. Rh1
{[%emt 0:01:25]} Kf6 {[%emt 0:01:26]} 36. Kxf4 {[%emt 0:02:48]} Rg6 {[%emt 0:
00:04]} 37. Re1 {[%emt 0:06:44]} Rg4+ {[%emt 0:00:05]} 38. Kf3 {[%emt 0:00:04]}
Rxh4 {[%emt 0:00:11]} 39. Re6+ {[%emt 0:00:06]} Kg5 {[%emt 0:01:27]} 40. Re7 {
[%emt 0:00:23]} Rh3+ {[%emt 0:02:51] Ke4} 1/2-1/2

[Event "US College Final 4-ch"]
[Site "New York"]
[Date "2015.03.28"]
[Round "1"]
[White "Moradiabadi, Elshan"]
[Black "Kritz, Leonid"]
[Result "1/2-1/2"]
[ECO "E11"]
[WhiteElo "2568"]
[BlackElo "2583"]
[Annotator "Robot 1"]
[PlyCount "99"]
[EventDate "2015.??.??"]
[EventCountry "USA"]
[WhiteTeam "Texas Tech University"]
[BlackTeam "UT Dallas"]
[TimeControl "5400+30"]

1. d4 {[%emt 0:00:00]} e6 {[%emt 0:00:00]} 2. g3 {[%emt 0:00:08]} d5 {[%emt 0:
00:52]} 3. Nf3 {[%emt 0:00:07]} Nf6 {[%emt 0:03:32]} 4. c4 {[%emt 0:00:39]}
Bb4+ {[%emt 0:00:06]} 5. Bd2 {[%emt 0:00:07]} Bxd2+ {[%emt 0:00:05]} 6. Qxd2 {
[%emt 0:00:07]} c6 {[%emt 0:00:05]} 7. Bg2 {[%emt 0:03:03]} O-O {[%emt 0:00:18]
} 8. O-O {[%emt 0:03:49]} Nbd7 {[%emt 0:00:10]} 9. Rc1 {[%emt 0:14:42]} dxc4 {
[%emt 0:05:53]} 10. Rxc4 {[%emt 0:00:23]} Qe7 {[%emt 0:00:04]} 11. Qb4 {[%emt
0:04:25]} Qxb4 {[%emt 0:01:27]} 12. Rxb4 {[%emt 0:00:01]} b6 {[%emt 0:14:21]}
13. Rc4 {[%emt 0:08:08]} c5 {[%emt 0:10:03]} 14. dxc5 {[%emt 0:01:22]} Nxc5 {
[%emt 0:09:11]} 15. Ne5 {[%emt 0:08:38]} Bb7 {[%emt 0:12:04]} 16. Bxb7 {[%emt
0:01:39]} Nxb7 {[%emt 0:00:06]} 17. Nc3 {[%emt 0:00:42]} Rfc8 {[%emt 0:10:14]}
18. Rd4 {[%emt 0:05:24]} h6 {[%emt 0:07:43]} 19. Rad1 {[%emt 0:03:57]} Na5 {
[%emt 0:00:46]} 20. e4 {[%emt 0:04:27]} Nc6 {[%emt 0:05:48]} 21. Nxc6 {[%emt 0:
00:02]} Rxc6 {[%emt 0:00:04]} 22. e5 {[%emt 0:01:00]} Ne8 {[%emt 0:00:04]} 23.
Rd7 {[%emt 0:00:28]} f6 {[%emt 0:07:31]} 24. exf6 {[%emt 0:03:21]} Nxf6 {[%emt
0:00:12]} 25. Rb7 {[%emt 0:00:12]} a6 {[%emt 0:00:22]} 26. Kf1 {[%emt 0:12:59]}
Kf8 {[%emt 0:00:45]} 27. Ke2 {[%emt 0:00:49]} Re8 {[%emt 0:00:06]} 28. a4 {
[%emt 0:04:21]} a5 {[%emt 0:00:23]} 29. h3 {[%emt 0:02:05]} Re7 {[%emt 0:00:25]
} 30. Rd8+ {[%emt 0:00:12]} Kf7 {[%emt 0:00:04]} 31. Rbb8 {[%emt 0:02:06]} Rd7
{[%emt 0:01:31]} 32. Rbc8 {[%emt 0:03:15]} Rxc8 {[%emt 0:01:41]} 33. Rxc8 {
[%emt 0:00:02]} Nd5 {[%emt 0:00:42]} 34. Nb5 {[%emt 0:02:43]} Kf6 {[%emt 0:01:
04]} 35. Rc6 {[%emt 0:00:37]} g5 {[%emt 0:01:23]} 36. Nd4 {[%emt 0:03:30]} Re7
{[%emt 0:00:10]} 37. Rc8 {[%emt 0:00:23]} Rc7 {[%emt 0:00:38]} 38. Rh8 {[%emt
0:02:08]} Kg7 {[%emt 0:01:56]} 39. Re8 {[%emt 0:00:33]} Kf7 {[%emt 0:00:27]}
40. Rh8 {[%emt 0:01:07]} Kg7 {[%emt 0:00:36]} 41. Rd8 {[%emt 0:00:41]} Kf6 {
[%emt 0:00:18]} 42. Kd3 {[%emt 0:00:47]} Nb4+ {[%emt 0:03:21]} 43. Ke4 {[%emt
0:01:03]} Nc2 {[%emt 0:00:37]} 44. Nb5 {[%emt 0:01:17]} Rc4+ {[%emt 0:00:21]}
45. Kd3 {[%emt 0:00:05]} Rc6 {[%emt 0:00:03]} 46. Rf8+ {[%emt 0:01:23]} Kg7 {
[%emt 0:00:29]} 47. Rb8 {[%emt 0:00:01]} Kf6 {[%emt 0:00:25]} 48. Rf8+ {[%emt
0:00:32]} Kg7 {[%emt 0:00:03]} 49. Rb8 {[%emt 0:00:28]} Kf6 50. Ke4 {Ke5+}
1/2-1/2

[Event "US College Final 4-ch"]
[Site "New York"]
[Date "2015.03.28"]
[Round "1"]
[White "Shoker, Samy"]
[Black "Berczes, David"]
[Result "1-0"]
[ECO "A07"]
[WhiteElo "2466"]
[BlackElo "2509"]
[Annotator "Robot 1"]
[PlyCount "69"]
[EventDate "2015.??.??"]
[EventCountry "USA"]
[WhiteTeam "Texas Tech University"]
[BlackTeam "UT Dallas"]
[TimeControl "5400+30"]

1. g3 {[%emt 0:00:00]} d5 {[%emt 0:00:00]} 2. Bg2 {[%emt 0:00:00]} c6 {[%emt 0:
00:29]} 3. Nf3 {[%emt 0:00:14]} Bg4 {[%emt 0:00:49]} 4. d3 {[%emt 0:01:18]} Nd7
{[%emt 0:05:58]} 5. Nbd2 {[%emt 0:01:54]} Ngf6 {[%emt 0:13:24]} 6. h3 {[%emt 0:
02:30]} Bh5 {[%emt 0:00:55]} 7. O-O {[%emt 0:00:36]} e5 {[%emt 0:02:36]} 8. Qe1
{[%emt 0:05:39]} Bc5 {[%emt 0:11:54]} 9. Nb3 {[%emt 0:08:32]} Bb6 {[%emt 0:07:
15]} 10. e4 {[%emt 0:08:05]} O-O {[%emt 0:06:29]} 11. exd5 {[%emt 0:08:44]}
Nxd5 {[%emt 0:04:20]} 12. a3 {[%emt 0:07:45]} Bxf3 {[%emt 0:10:54]} 13. Bxf3 {
[%emt 0:00:07]} f5 {[%emt 0:00:19]} 14. Kh2 {[%emt 0:08:05]} Qc7 {[%emt 0:12:
55]} 15. c4 {[%emt 0:12:17]} N5f6 {[%emt 0:02:54]} 16. d4 {[%emt 0:00:14]} e4 {
[%emt 0:01:40]} 17. Bg2 {[%emt 0:01:54]} Qd8 {[%emt 0:00:58]} 18. f3 {[%emt 0:
04:55]} Bc7 {[%emt 0:01:28]} 19. fxe4 {[%emt 0:04:28]} fxe4 {[%emt 0:02:14]}
20. Bf4 {[%emt 0:01:47]} Bxf4 {[%emt 0:07:18]} 21. Rxf4 {[%emt 0:00:07]} Qb6 {
[%emt 0:00:16]} 22. Qc3 {[%emt 0:02:53]} c5 {[%emt 0:02:37]} 23. dxc5 {[%emt 0:
07:58]} Nxc5 {[%emt 0:00:50]} 24. Nxc5 {[%emt 0:00:04]} Qxc5 {[%emt 0:00:05]}
25. b4 {[%emt 0:00:20]} Qc7 {[%emt 0:02:17]} 26. Re1 {[%emt 0:01:32]} Kh8 {
[%emt 0:01:06]} 27. Bxe4 {[%emt 0:02:09]} a5 {[%emt 0:00:56]} 28. b5 {[%emt 0:
02:18]} Rac8 {[%emt 0:00:28]} 29. Bg2 {[%emt 0:00:40]} Qb6 {[%emt 0:00:34]} 30.
Re7 {[%emt 0:01:16]} Rc7 {[%emt 0:00:23]} 31. Rxc7 {[%emt 0:04:19]} Qxc7 {
[%emt 0:00:02]} 32. c5 {[%emt 0:00:07]} h6 {[%emt 0:00:30]} 33. b6 {[%emt 0:00:
20]} Qe7 {[%emt 0:00:24]} 34. Qxa5 {[%emt 0:00:36]} Qe2 {[%emt 0:00:22]} 35.
Qc3 {[%emt 0:00:12]} 1-0

[Event "US College Final 4-ch"]
[Site "New York"]
[Date "2015.03.28"]
[Round "2"]
[White "Bregadze, Levan"]
[Black "Shoker, Samy"]
[Result "1-0"]
[ECO "B06"]
[WhiteElo "2484"]
[BlackElo "2466"]
[Annotator "Robot 1"]
[PlyCount "138"]
[EventDate "2015.??.??"]
[EventCountry "USA"]
[WhiteTeam "University Maryland"]
[BlackTeam "Texas Tech University"]
[TimeControl "5400+30"]

1. d4 {[%emt 0:00:00]} g6 {[%emt 0:00:33]} 2. e4 {[%emt 0:00:00]} Bg7 {[%emt 0:
00:41]} 3. Nc3 {[%emt 0:00:00]} d6 {[%emt 0:00:07]} 4. f4 {[%emt 0:00:07]} a6 {
[%emt 0:00:46]} 5. Nf3 {[%emt 0:00:08]} b5 {[%emt 0:02:26]} 6. Bd3 {[%emt 0:00:
30]} Nd7 {[%emt 0:00:39]} 7. e5 {[%emt 0:00:12]} Bb7 {[%emt 0:05:03]} 8. Be4 {
[%emt 0:01:39]} Qc8 {[%emt 0:00:44]} 9. Qe2 {[%emt 0:01:06]} Nh6 {[%emt 0:02:
12]} 10. a4 {[%emt 0:01:34]} b4 {[%emt 0:07:33]} 11. Nd5 {[%emt 0:01:20]} e6 {
[%emt 0:00:29]} 12. exd6 {[%emt 0:04:58]} exd5 {[%emt 0:11:56]} 13. Bxd5+ {
[%emt 0:05:16]} Kf8 {[%emt 0:00:14]} 14. Bxb7 {[%emt 0:00:11]} Qxb7 {[%emt 0:
00:04]} 15. Qe7+ {[%emt 0:00:04]} Kg8 {[%emt 0:00:04]} 16. Qxd7 {[%emt 0:00:06]
} Qe4+ {[%emt 0:02:47]} 17. Kd1 {[%emt 0:01:49]} cxd6 {[%emt 0:11:02]} 18. Re1
{[%emt 0:01:36]} Qd5 {[%emt 0:00:42]} 19. Re8+ {[%emt 0:00:48]} Bf8 {[%emt 0:
01:00]} 20. b3 {[%emt 0:04:13]} Nf5 {[%emt 0:10:44]} 21. Re5 {[%emt 0:00:49]}
Ra7 {[%emt 0:01:47]} 22. Qxa7 {[%emt 0:06:53]} dxe5 {[%emt 0:00:06]} 23. fxe5 {
[%emt 0:00:03]} a5 {[%emt 0:02:33]} 24. Bd2 {[%emt 0:01:32]} h6 {[%emt 0:03:43]
} 25. Kc1 {[%emt 0:03:12]} Kh7 {[%emt 0:03:43]} 26. Kb2 {[%emt 0:06:15]} Bg7 {
[%emt 0:02:04]} 27. Qc5 {[%emt 0:00:15]} Qxc5 {[%emt 0:01:47]} 28. dxc5 {[%emt
0:00:03]} g5 {[%emt 0:00:23]} 29. Rf1 {[%emt 0:02:58]} Kg6 {[%emt 0:16:03]} 30.
c3 {[%emt 0:02:20]} Rd8 {[%emt 0:01:03]} 31. g4 {[%emt 0:00:25]} bxc3+ {[%emt
0:04:05]} 32. Kxc3 {[%emt 0:01:22]} Ne7 {[%emt 0:01:22]} 33. Kc4 {[%emt 0:00:
09]} Nc6 {[%emt 0:02:38]} 34. Bc3 {[%emt 0:00:16]} Bf8 {[%emt 0:00:20]} 35. e6
{[%emt 0:03:13]} fxe6 {[%emt 0:01:52]} 36. Ne5+ {[%emt 0:00:22]} Nxe5+ {[%emt
0:00:01]} 37. Bxe5 {[%emt 0:00:08]} Be7 {[%emt 0:00:14]} 38. Re1 {[%emt 0:00:
55]} Kf7 {[%emt 0:00:34]} 39. Bc3 {[%emt 0:01:25]} Rc8 {[%emt 0:00:18]} 40. b4
{[%emt 0:00:02]} axb4 {[%emt 0:00:32]} 41. Bxb4 {[%emt 0:00:01]} Bd6 {[%emt 0:
01:07]} 42. h3 {[%emt 0:00:45]} Ke7 {[%emt 0:02:43]} 43. a5 {[%emt 0:01:15]}
Bc7 {[%emt 0:00:38]} 44. Rd1 {[%emt 0:00:58]} e5 {[%emt 0:00:32]} 45. c6+ {
[%emt 0:01:20]} Ke6 {[%emt 0:00:01]} 46. a6 {[%emt 0:00:16]} e4 {[%emt 0:00:52]
} 47. Bc5 {[%emt 0:00:09]} Bf4 {[%emt 0:01:19]} 48. a7 {[%emt 0:00:19]} e3 {
[%emt 0:00:43]} 49. Rd7 {[%emt 0:01:12]} Kf6 {[%emt 0:01:08]} 50. Kd3 {[%emt 0:
00:11]} Ke6 {[%emt 0:00:26]} 51. Re7+ {[%emt 0:01:03]} Kd5 {[%emt 0:00:05]} 52.
Bxe3 {[%emt 0:00:32]} Kxc6 {[%emt 0:01:01]} 53. Bxf4 {[%emt 0:00:13]} gxf4 {
[%emt 0:00:05]} 54. Ke4 {[%emt 0:00:03]} Kd6 {[%emt 0:00:37]} 55. Rh7 {[%emt 0:
00:25]} Rc4+ {[%emt 0:00:02]} 56. Kf3 {[%emt 0:00:10]} Ra4 {[%emt 0:00:01]} 57.
Rxh6+ {[%emt 0:00:07]} Ke5 {[%emt 0:00:05]} 58. Rh5+ {[%emt 0:00:11]} Kf6 {
[%emt 0:01:15]} 59. Rh7 {[%emt 0:02:09]} Kg5 {[%emt 0:00:46]} 60. h4+ {[%emt 0:
00:04]} Kg6 {[%emt 0:00:04]} 61. Rb7 {[%emt 0:00:02]} Kf6 {[%emt 0:00:19]} 62.
g5+ {[%emt 0:00:33]} Kf5 {[%emt 0:00:34]} 63. Rb5+ {[%emt 0:00:53]} Kg6 {[%emt
0:00:11]} 64. Rb6+ {[%emt 0:00:04]} Kf5 {[%emt 0:01:42]} 65. Rf6+ {[%emt 0:00:
08]} Ke5 {[%emt 0:00:01]} 66. Kg4 {[%emt 0:00:15]} Ra1 {[%emt 0:00:23]} 67.
Rf5+ {[%emt 0:00:04]} Ke6 {[%emt 0:00:03]} 68. Rxf4 {[%emt 0:00:05]} Rxa7 {
[%emt 0:00:04]} 69. h5 {[%emt 0:00:34]} Kd5 1-0

[Event "US College Final 4-ch"]
[Site "New York"]
[Date "2015.03.28"]
[Round "2"]
[White "Gorovets, Andrey"]
[Black "Akshayraj, Kore"]
[Result "0-1"]
[ECO "A13"]
[WhiteElo "2518"]
[BlackElo "2472"]
[Annotator "Robot 1"]
[PlyCount "200"]
[EventDate "2015.??.??"]
[EventCountry "USA"]
[WhiteTeam "Texas Tech University"]
[BlackTeam "University Maryland"]
[TimeControl "5400+30"]

1. c4 e6 {[%emt 0:04:13]} 2. Nf3 {[%emt 0:01:09]} b6 {[%emt 0:01:20]} 3. g3 {
[%emt 0:02:43]} Bb7 {[%emt 0:02:18]} 4. Bg2 {[%emt 0:00:07]} c5 {[%emt 0:03:28]
} 5. O-O {[%emt 0:01:01]} d6 {[%emt 0:00:09]} 6. d4 {[%emt 0:03:40]} cxd4 {
[%emt 0:00:11]} 7. Qxd4 {[%emt 0:01:22]} Qc7 {[%emt 0:00:52]} 8. Nc3 {[%emt 0:
02:08]} a6 {[%emt 0:00:05]} 9. Rd1 {[%emt 0:14:40]} Nf6 {[%emt 0:03:40]} 10.
Be3 {[%emt 0:13:20]} Nbd7 {[%emt 0:00:08]} 11. Ng5 {[%emt 0:02:07]} Bxg2 {
[%emt 0:02:04]} 12. Kxg2 {[%emt 0:00:29]} Be7 {[%emt 0:28:24]} 13. Nge4 {[%emt
0:01:26]} O-O {[%emt 0:10:46]} 14. Nxd6 {[%emt 0:09:40]} Rad8 {[%emt 0:01:02]}
15. Nde4 {[%emt 0:16:28]} Ng4 {[%emt 0:01:31]} 16. Bf4 {[%emt 0:10:52]} Qc6 {
[%emt 0:01:51]} 17. f3 {[%emt 0:01:17]} Nc5 {[%emt 0:01:37]} 18. Nd5 {[%emt 0:
04:36]} exd5 {[%emt 0:01:31]} 19. cxd5 {[%emt 0:00:21]} Qg6 {[%emt 0:04:03]}
20. Nxc5 {[%emt 0:01:38]} Bxc5 {[%emt 0:02:50]} 21. Qd3 {[%emt 0:00:13]} Nh6 {
[%emt 0:01:26]} 22. e4 {[%emt 0:03:24]} a5 {[%emt 0:01:47]} 23. Qb5 {[%emt 0:
01:53]} f6 {[%emt 0:17:21]} 24. Bc7 {[%emt 0:00:54]} Ng4 {[%emt 0:04:32]} 25.
Bxd8 {[%emt 0:04:06]} Ne3+ {[%emt 0:00:15]} 26. Kh1 {[%emt 0:00:08]} Qh5 {
[%emt 0:01:28]} 27. Qe2 {[%emt 0:00:18]} Nxd1 {[%emt 0:00:14]} 28. Rxd1 {[%emt
0:00:07]} Rxd8 {[%emt 0:00:04]} 29. Kg2 {[%emt 0:00:04]} Bd6 {[%emt 0:01:16]}
30. Rd2 {[%emt 0:02:54]} Qf7 {[%emt 0:01:30]} 31. f4 {[%emt 0:01:04]} Qe7 {
[%emt 0:02:13]} 32. Qf3 {[%emt 0:01:10]} Rc8 {[%emt 0:00:13]} 33. Rf2 {[%emt 0:
00:36]} h6 {[%emt 0:00:12]} 34. Re2 {[%emt 0:00:10]} Qc7 {[%emt 0:00:47]} 35.
Qg4 {[%emt 0:00:35]} Re8 {[%emt 0:00:03]} 36. Kh3 {[%emt 0:00:37]} Qf7 {[%emt
0:00:51]} 37. Qf3 {[%emt 0:00:19]} Qd7+ {[%emt 0:00:22]} 38. Kg2 {[%emt 0:00:
20]} Qa4 {[%emt 0:00:20]} 39. Qd3 {[%emt 0:00:37]} Qd7 {[%emt 0:00:54]} 40. b3
{[%emt 0:00:26]} Qe7 {[%emt 0:01:11]} 41. a4 {[%emt 0:00:17]} Qc7 {[%emt 0:00:
34]} 42. Rc2 {[%emt 0:00:20]} Bc5 {[%emt 0:00:19]} 43. h4 {[%emt 0:01:04]} Qd7
{[%emt 0:00:30]} 44. Qf3 {[%emt 0:00:40]} Rd8 {[%emt 0:00:23]} 45. Rd2 {[%emt
0:00:21]} Qe7 {[%emt 0:00:52]} 46. h5 {[%emt 0:00:24]} Bd6 {[%emt 0:00:22]} 47.
Rc2 {[%emt 0:00:31]} Qf7 {[%emt 0:00:23]} 48. Rd2 {[%emt 0:00:50]} Rc8 {[%emt
0:00:21]} 49. Re2 {[%emt 0:00:27]} Qc7 {[%emt 0:00:49]} 50. Qg4 {[%emt 0:00:32]
} Re8 {[%emt 0:00:14]} 51. Qg6 {[%emt 0:00:28]} Qd7 {[%emt 0:00:45]} 52. Rc2 {
[%emt 0:00:19]} Bc5 {[%emt 0:00:26]} 53. Rd2 {[%emt 0:00:18]} Bb4 {[%emt 0:00:
14]} 54. Rd4 {[%emt 0:00:48]} Bc5 {[%emt 0:00:49]} 55. Rd2 {[%emt 0:00:05]} Kf8
{[%emt 0:00:26]} 56. Kh2 {[%emt 0:01:03]} Bb4 {[%emt 0:00:46]} 57. Rf2 {[%emt
0:00:27]} f5 {[%emt 0:00:34]} 58. e5 {[%emt 0:00:19]} Qxd5 {[%emt 0:00:19]} 59.
Qxf5+ {[%emt 0:00:23]} Qf7 {[%emt 0:00:01]} 60. Qxf7+ {[%emt 0:00:42]} Kxf7 {
[%emt 0:00:02]} 61. Rc2 {[%emt 0:00:25]} Bc5 {[%emt 0:00:11]} 62. Rd2 {[%emt 0:
00:34]} Ke7 {[%emt 0:00:57]} 63. Kh3 {[%emt 0:00:39]} Rf8 {[%emt 0:00:21]} 64.
Kg4 {[%emt 0:00:12]} Ke6 {[%emt 0:00:05]} 65. Kf3 {[%emt 0:00:13]} Bb4 {[%emt
0:01:24]} 66. Rc2 {[%emt 0:00:16]} Kd5 {[%emt 0:01:04]} 67. Rc7 {[%emt 0:00:17]
} Rg8 {[%emt 0:00:45]} 68. Rd7+ {[%emt 0:00:11]} Kc6 {[%emt 0:00:29]} 69. e6 {
[%emt 0:00:38]} Re8 {[%emt 0:00:26]} 70. f5 {[%emt 0:00:30]} Bc3 {[%emt 0:00:
35]} 71. g4 {[%emt 0:00:38]} Bf6 {[%emt 0:00:03]} 72. Rf7 {[%emt 0:01:34]} Kd5
{[%emt 0:00:32]} 73. Kf4 {[%emt 0:00:32]} Re7 {[%emt 0:00:38]} 74. g5 {[%emt 0:
00:32]} Bxg5+ {[%emt 0:00:08]} 75. Kg4 {[%emt 0:00:02]} Ke5 {[%emt 0:00:57]}
76. Rf8 {[%emt 0:00:13]} Rc7 {[%emt 0:00:32]} 77. Rb8 {[%emt 0:00:10]} Rc1 {
[%emt 0:00:30]} 78. Rxb6 {[%emt 0:00:19]} Rg1+ {[%emt 0:00:18]} 79. Kf3 {[%emt
0:00:16]} Rf1+ {[%emt 0:00:37]} 80. Ke2 {[%emt 0:01:04]} Rxf5 {[%emt 0:00:04]}
81. b4 {[%emt 0:00:10]} Kf6 {[%emt 0:00:58]} 82. b5 {[%emt 0:00:18]} Re5+ {
[%emt 0:00:21]} 83. Kd3 {[%emt 0:00:22]} Rxe6 {[%emt 0:00:51]} 84. Ra6 {[%emt
0:00:18]} Ke5 {[%emt 0:00:08]} 85. b6 {[%emt 0:01:04]} Re8 {[%emt 0:00:44]} 86.
Rxa5+ {[%emt 0:01:08]} Kd6 {[%emt 0:00:01]} 87. Ra7 {[%emt 0:00:45]} Kc6 {
[%emt 0:00:41]} 88. a5 {[%emt 0:00:18]} Re7 {[%emt 0:00:50]} 89. Ra8 {[%emt 0:
00:29]} Kb5 {[%emt 0:00:27]} 90. Ra7 {[%emt 0:00:50]} Kc6 {[%emt 0:00:02]} 91.
Ra8 {[%emt 0:00:07]} Bf4 {[%emt 0:00:36]} 92. Kd4 {[%emt 0:01:06]} Bd6 {[%emt
0:00:50]} 93. Rc8+ {[%emt 0:00:27]} Kb7 {[%emt 0:00:16]} 94. Rc4 {[%emt 0:00:
33]} Re5 {[%emt 0:00:48]} 95. Ra4 {[%emt 0:00:28]} Rxh5 {[%emt 0:00:13]} 96.
a6+ {[%emt 0:00:18]} Kxb6 {[%emt 0:00:02]} 97. Ra2 {[%emt 0:00:25]} Ka7 {[%emt
0:00:10]} 98. Ke4 {[%emt 0:00:16]} Re5+ {[%emt 0:00:13]} 99. Kf3 {[%emt 0:00:
03]} Be7 {[%emt 0:00:17]} 100. Rg2 {[%emt 0:00:10]} Bf6 {[%emt 0:00:01]} 0-1

[Event "US College Final 4-ch"]
[Site "New York"]
[Date "2015.03.28"]
[Round "2"]
[White "Ringoir, Tanguy"]
[Black "Moradiabadi, Elshan"]
[Result "1/2-1/2"]
[ECO "E21"]
[WhiteElo "2526"]
[BlackElo "2568"]
[Annotator "Robot 1"]
[PlyCount "82"]
[EventDate "2015.??.??"]
[EventCountry "USA"]
[WhiteTeam "University Maryland"]
[BlackTeam "Texas Tech University"]
[TimeControl "5400+30"]

1. d4 {[%emt 0:00:00]} Nf6 {[%emt 0:00:00]} 2. c4 {[%emt 0:00:00]} e6 {[%emt 0:
00:00]} 3. Nc3 {[%emt 0:00:00]} Bb4 {[%emt 0:00:00]} 4. Qc2 {[%emt 0:00:04]}
O-O {[%emt 0:00:00]} 5. Nf3 {[%emt 0:00:04]} d6 {[%emt 0:04:51]} 6. Bd2 {[%emt
0:00:18]} b6 {[%emt 0:01:31]} 7. e3 {[%emt 0:09:21]} Bb7 {[%emt 0:00:36]} 8.
Bd3 {[%emt 0:00:29]} c5 {[%emt 0:02:03]} 9. dxc5 {[%emt 0:06:03]} bxc5 {[%emt
0:00:23]} 10. a3 {[%emt 0:01:05]} Ba5 {[%emt 0:02:12]} 11. O-O {[%emt 0:01:17]}
Nbd7 {[%emt 0:03:21]} 12. Rfd1 {[%emt 0:01:20]} h6 {[%emt 0:11:58]} 13. Ne4 {
[%emt 0:08:41]} Bxd2 {[%emt 0:07:11]} 14. Rxd2 {[%emt 0:00:11]} Nxe4 {[%emt 0:
08:54]} 15. Bxe4 {[%emt 0:00:02]} Bxe4 {[%emt 0:00:05]} 16. Qxe4 {[%emt 0:00:
08]} Nb6 {[%emt 0:00:01]} 17. Qc2 {[%emt 0:06:26]} Qc7 {[%emt 0:01:11]} 18. e4
{[%emt 0:00:05]} a5 {[%emt 0:01:35]} 19. a4 {[%emt 0:00:22]} Ra6 {[%emt 0:05:
14]} 20. Rad1 {[%emt 0:05:45]} Nd7 {[%emt 0:03:01]} 21. h3 {[%emt 0:07:54]} Nf6
{[%emt 0:03:07]} 22. Re2 {[%emt 0:04:03]} Nd7 {[%emt 0:03:25]} 23. Red2 {[%emt
0:01:59]} Qb8 {[%emt 0:02:24]} 24. Rd3 {[%emt 0:04:47]} Rb6 {[%emt 0:00:31]}
25. b3 {[%emt 0:01:47]} Nf6 {[%emt 0:00:48]} 26. Re1 {[%emt 0:03:32]} Qc7 {
[%emt 0:04:20]} 27. e5 {[%emt 0:01:39]} dxe5 {[%emt 0:01:28]} 28. Nxe5 {[%emt
0:00:01]} Rd8 {[%emt 0:01:32]} 29. Red1 {[%emt 0:09:07]} Rbd6 {[%emt 0:01:30]}
30. Qc3 {[%emt 0:01:11]} Rxd3 {[%emt 0:05:11]} 31. Rxd3 {[%emt 0:00:02]} Rxd3 {
[%emt 0:00:06]} 32. Nxd3 {[%emt 0:00:04]} Nd7 {[%emt 0:00:04]} 33. Ne1 {[%emt
0:02:15]} Ne5 {[%emt 0:03:29]} 34. Nd3 {[%emt 0:00:16]} Nd7 {[%emt 0:01:47]}
35. Ne1 {[%emt 0:00:02]} f5 {[%emt 0:01:05]} 36. g3 {[%emt 0:05:23]} Ne5 {
[%emt 0:01:05]} 37. Nf3 {[%emt 0:06:07]} Nc6 {[%emt 0:00:52]} 38. Qd2 {[%emt 0:
00:07]} Nb4 {[%emt 0:05:08]} 39. Qe2 {[%emt 0:01:45]} Qd6 {[%emt 0:02:23]} 40.
Ne5 {[%emt 0:00:01]} Qd4 {[%emt 0:02:39]} 41. Nc6 {[%emt 0:00:45]} Qd6 {[%emt
0:01:02]} 1/2-1/2

[Event "US College Final 4-ch"]
[Site "New York"]
[Date "2015.03.28"]
[Round "2"]
[White "Zherebukh, Yaroslav"]
[Black "Huschenbeth, Niclas"]
[Result "1-0"]
[ECO "A46"]
[WhiteElo "2640"]
[BlackElo "2536"]
[Annotator "Robot 1"]
[PlyCount "49"]
[EventDate "2015.??.??"]
[EventCountry "USA"]
[WhiteTeam "Texas Tech University"]
[BlackTeam "University Maryland"]
[TimeControl "5400+30"]

1. d4 {[%emt 0:00:00]} Nf6 {[%emt 0:00:00]} 2. Nf3 {[%emt 0:00:00]} e6 {[%emt
0:00:00]} 3. Bg5 {[%emt 0:00:36]} c5 {[%emt 0:00:00]} 4. e3 {[%emt 0:00:20]} h6
{[%emt 0:00:16]} 5. Bh4 {[%emt 0:00:55]} cxd4 {[%emt 0:01:00]} 6. exd4 {[%emt
0:00:07]} Qb6 {[%emt 0:00:14]} 7. b3 {[%emt 0:08:40]} Nc6 {[%emt 0:16:40]} 8.
c3 {[%emt 0:02:54]} d5 {[%emt 0:02:32]} 9. Nbd2 {[%emt 0:00:57]} Nh5 {[%emt 0:
15:08]} 10. b4 {[%emt 0:13:02]} g5 {[%emt 0:11:54]} 11. b5 {[%emt 0:02:29]} Ne7
{[%emt 0:06:13]} 12. Ne5 {[%emt 0:01:18]} Ng7 {[%emt 0:04:35]} 13. Bg3 {[%emt
0:00:06]} h5 {[%emt 0:02:48]} 14. Nec4 {[%emt 0:17:43]} dxc4 {[%emt 0:00:07]}
15. Nxc4 {[%emt 0:00:04]} Qd8 {[%emt 0:00:04]} 16. Nd6+ {[%emt 0:00:05]} Kd7 {
[%emt 0:00:04]} 17. Nxf7 {[%emt 0:00:07]} Qa5 {[%emt 0:00:19]} 18. Qb3 {[%emt
0:00:05]} Rg8 {[%emt 0:06:16]} 19. Bc4 {[%emt 0:04:32]} g4 {[%emt 0:11:22]} 20.
O-O {[%emt 0:00:45]} Nef5 {[%emt 0:04:13]} 21. Rae1 {[%emt 0:02:37]} Ke7 {
[%emt 0:08:18]} 22. Ng5 {[%emt 0:01:15]} Qb6 {[%emt 0:00:26]} 23. Be5 {[%emt 0:
04:51]} Nd6 {[%emt 0:03:14]} 24. Bd3 {[%emt 0:05:47]} Ngf5 {[%emt 0:01:44]} 25.
Nxe6 {[%emt 0:01:02]} 1-0